Cogmind - Beta 16 @@@ ROGUE MODE // 2026.02.01 @ 18:29:30 Player: FrigidRock Result: Destroyed by S-27 Virus with Autogun Performance ------------- Evolutions (6) 3000 Regions Visited (18) 3600 Robots Destroyed (342) 1710 Value Destroyed (12010) 12010 Prototype IDs (43) 860 Alien Tech Used (0) 0 Bonus (3697) 3697 TOTAL SCORE: 24877 Bonus ------- High Alert Combat Kills 1947 Follower Combat Kills 2165 Entered Garrisons 200 Network Hubs Disabled 200 Registered with UFD 300 Met Optimus in HQ 500 Built Enhanced Grunts 300 A7 Reached Mainframe 300 Met R17 at Cetus 500 Friendly Fire -2715 Cogmind --------- Core Integrity 0/1150 Matter 185/300 Energy 93/100 System Corruption 9% Temperature Cool (3) Movement Walking (100) Location -4/Garrison Parts ------- > --- POWER (3) -------- (None) > --- PROPULSION (5) --- Enhanced Biometal Leg > --- UTILITY (8) ------ (None) > --- WEAPON (3) ------- (None) > --- INVENTORY (5) ---- Flexi-carbon Leg Deep Structural Scanner Experimental EM Shield Improved Plasma Cutter Peak State ------------ > --- POWER ------------ Compact Particle Reactor Quantum Reactor Quantum Reactor > --- PROPULSION ------- Medium Treads Centrium Heavy Treads Centrium Heavy Treads > --- UTILITY ---------- Experimental Heat Sink High-capacity Storage Unit Deep Structural Scanner Core Analyzer Advanced Recoil Stabilizer Experimental Phase Shifter Centrium Medium Armor Plating A0-MCA's Component Scanner > --- WEAPON ----------- Quantum Rifle Advanced KE Penetrator Advanced KE Penetrator > --- INVENTORY -------- Enhanced Biometal Leg Enhanced Biometal Leg Enhanced Biometal Leg Enhanced Biometal Leg Experimental Heat Sink Compact Matter Pod Siege Articulator Improved Weapon Cycler Centrium Medium Armor Plating Medium Regenerative Plating Experimental EM Shield Mapping Drone Bay Advanced Variable Charge Gun Heavy Proton Missile Launcher Advanced Datajack Improved Plasma Cutter PL-3XN's Ring of Power [Rating: 153] Favorites ----------- Power Quantum Reactor Engine Cooled Deuterium Engine Power Core Micro Fission Core Reactor Quantum Reactor Propulsion Armored Huge Wheel Treads Improved Treads Leg Aluminum Leg Wheel Armored Huge Wheel Flight Unit Improved Flight Unit Utility Core Analyzer Device Cryofiber Web Storage High-capacity Storage Unit Processor Core Analyzer Hackware Hacking Suite Protection Centrium Medium Armor Plating Weapon Improved Assault Rifle Energy Gun Cooled Plasma Rifle Energy Cannon Disruptor Cannon Ballistic Gun Improved Assault Rifle Ballistic Cannon Gauss Cannon Launcher Heavy Proton Missile Launcher Special Weapon Improved Plasma Cutter Slashing Weapon Katana Special Melee Weapon Improved Datajack Build | -11 -10 -10 -9 -9 -8 -7 -7 -7 -7 -7 -7 -5 -5 -5 -5 -5 -4 -4 ------- Run | Yrd Mat Min Mat Min Mat Fac Was Fac Sto Rec Scr Fac Ext Cet Arc Hub Fac Gar Slots Evolved 12 | . . . 2 . 2 2 . . . . . 4 . . . . 2 . Power 2 | . . . . . . . . . . . . 1 . . . . 1 . Propulsion 3 | . . . 1 . . 1 . . . . . 1 . . . . . . Utility 6 | . . . . . 2 1 . . . . . 2 . . . . 1 . Weapon 1 | . . . 1 . . . . . . . . . . . . . . . Parts Attached 204 | 7 . 1 37 . 28 5 3 10 10 1 5 41 14 13 5 9 14 1 Power 29 | 1 . . 5 . 3 . 1 . 1 . 1 7 2 2 . 3 3 . Engine 15 | 1 . . 5 . 3 . . . 1 . 1 4 . . . . . . Core 5 | . . . . . . . . . . . . 3 . . . . 2 . Reactor 9 | . . . . . . . 1 . . . . . 2 2 . 3 1 . Propulsion 45 | 2 . . 15 . 4 1 . . 3 . 1 10 3 2 1 . 2 1 Treads 20 | . . . 6 . 3 . . . . . . 4 3 2 1 . 1 . Leg 13 | 2 . . 9 . . . . . . . . . . . . . 1 1 Wheel 11 | . . . . . 1 1 . . 2 . 1 6 . . . . . . Hover . | . . . . . . . . . . . . . . . . . . . Flight 1 | . . . . . . . . . 1 . . . . . . . . . Utility 69 | 2 . . 7 . 9 2 1 7 1 1 3 10 6 5 3 5 7 . Device 35 | 1 . . 1 . 3 2 1 1 1 . 2 7 2 2 3 3 6 . Storage 5 | 1 . . 3 . . . . . . . . 1 . . . . . . Processor 10 | . . . . . 2 . . 2 . . . 2 2 1 . . 1 . Hackware 2 | . . . . . . . . 2 . . . . . . . . . . Protection 17 | . . . 3 . 4 . . 2 . 1 1 . 2 2 . 2 . . Artifact . | . . . . . . . . . . . . . . . . . . . Weapon 61 | 2 . 1 10 . 12 2 1 3 5 . . 14 3 4 1 1 2 . Energy Gun 21 | 2 . . 2 . 4 1 . . . . . 8 . 1 1 . 2 . Energy Cannon 5 | . . . . . 1 . . . 1 . . . 2 1 . . . . Ballistic Gun 15 | . . . 4 . 5 . . . 2 . . 2 . 1 . 1 . . Ballistic Cannon 13 | . . . 2 . 2 . . 3 2 . . 4 . . . . . . Launcher 3 | . . 1 1 . . . 1 . . . . . . . . . . . Special Weapon 2 | . . . . . . . . . . . . . 1 1 . . . . Impact Weapon . | . . . . . . . . . . . . . . . . . . . Slashing Weapon 1 | . . . 1 . . . . . . . . . . . . . . . Piercing Weapon . | . . . . . . . . . . . . . . . . . . . Special Melee Weapon 1 | . . . . . . 1 . . . . . . . . . . . . Unidentified Prototypes 19 | . . . 3 . 1 1 1 . 6 . . 3 1 3 . . . . Corrupted Parts 7 | . . . . . 1 . . . . . . 1 . 1 . 4 . . System Corruption 41 | . . . . . 6 . . . . . . 3 . 12 . 20 . . Parts Lost 55 | . . . . . 11 . . 2 2 . 6 10 9 1 . . 13 1 Power 6 | . . . . . 1 . . . . . 1 2 . . . . 2 . Propulsion 16 | . . . . . 2 . . . 1 . . 6 3 1 . . 2 1 Utility 21 | . . . . . 5 . . 2 1 . 3 1 4 . . . 5 . Weapon 12 | . . . . . 3 . . . . . 2 1 2 . . . 4 . Highest Loss Streak 6 | . . . . . 3 . . 1 1 . 6 6 3 1 . . 5 1 To Critical Strikes . | . . . . . . . . . . . . . . . . . . . Average Backups 15 | 1 4 7 12 17 13 12 12 16 17 19 18 16 16 16 18 18 15 5 Power . | . 2 2 . . 1 1 1 1 1 . . 1 1 . 2 2 . . Propulsion 1 | . . . . 1 1 2 2 2 2 3 2 . . . 1 2 4 2 Utility 7 | . 1 2 5 7 5 5 6 8 8 7 7 10 10 10 9 9 7 2 Weapon 3 | . 1 2 4 8 2 2 3 4 4 5 5 3 3 3 3 2 1 . Tool/Special . | . . . . . . . . . . . . . . . . . . . Unused Backups 48 | . . . 8 . 7 . 1 1 1 1 4 5 . 6 1 2 9 2 Power 8 | . . . 4 . . . 1 . 1 . . 1 . . . . 1 . Propulsion 11 | . . . . . 2 . . . . . 3 . . 1 . 1 3 1 Utility 17 | . . . 1 . 1 . . 1 . 1 1 1 . 4 1 1 4 1 Weapon 9 | . . . 3 . 3 . . . . . . 2 . 1 . . . . Tool/Special 3 | . . . . . 1 . . . . . . 1 . . . . 1 . Average Slot Usage (%) 88 | . 100 100 98 100 97 79 84 83 82 84 83 88 88 87 86 87 85 4 Engine 4 | . 14 14 11 11 9 7 2 . . 6 6 6 . . . . . . Core 1 | . . . . . . . . . . . . 2 7 4 . . 2 . Reactor 3 | . . . . . . . 4 7 7 . . . 2 5 11 11 11 . Treads 10 | . . . 17 33 25 . . . . . . 5 19 18 17 17 14 . Leg 2 | . 28 28 15 . . . . . . . . . . . . . . 4 Wheel 6 | . . . . . . 15 15 15 15 15 14 14 . . . . . . Device 9 | . 14 14 1 . 6 18 23 11 10 7 6 12 16 11 7 8 19 . Storage 7 | . 14 14 11 11 9 7 7 7 7 7 7 5 5 5 5 5 4 . Processor 10 | . . . . . 9 7 7 14 15 15 15 15 10 14 17 17 9 . Protection 6 | . . . 9 11 9 . . 2 3 7 6 3 4 6 6 7 6 . Energy Gun 5 | . 28 26 2 . 9 5 4 . . . . 8 11 6 11 8 6 . Ballistic Gun 7 | . . . 17 11 7 9 9 9 6 7 6 2 . 3 5 7 5 . Ballistic Cannon 7 | . . . 10 15 7 5 2 11 15 15 14 5 . . . . . . Peak Build Rating 153 | 9 9 11 25 25 33 48 56 59 61 58 60 81 86 132 135 139 153 12 Average Rating 62 | 5 9 9 18 24 29 45 51 56 58 54 54 59 80 111 131 134 140 9 On Entrance 52 | . 9 9 10 25 24 30 48 53 58 58 54 32 79 83 132 135 139 12 Avg Prop Armor Cover (%) 19 | . . . . . . . . . . . . 16 . . . . 14 30 Naked Turns 19 | . . . . . . . . . . . . . . . . . 3 16 Heaviest Build 136 | 13 13 16 65 65 49 49 58 81 81 78 72 84 92 105 106 112 136 . Greatest Support 188 | 20 20 20 69 60 66 56 56 56 56 56 56 110 125 183 188 188 188 30 Greatest Overweight (x) 7 | 1 . . 2 1 1 . 1 1 1 1 1 7 1 1 . . . . Average Overweight (x) . | . . . . 1 . . . 1 1 1 . 1 . . . . . . Largest Inventory Capacity 20 | 8 8 8 20 20 20 15 15 20 20 20 20 20 20 20 20 20 20 5 Average Capacity 18 | 6 8 8 14 20 15 15 15 19 20 20 20 20 20 20 20 20 19 5 Most Carried 20 | 4 6 8 20 17 16 15 15 20 20 20 20 20 20 20 20 20 20 5 Average Carried 16 | 1 4 7 12 17 13 14 14 18 18 19 19 18 18 18 19 19 16 4 Final Capacity 20 | 8 8 8 20 20 15 15 15 20 20 20 20 20 20 20 20 20 5 5 Final Carried 20 | 4 6 8 17 17 15 15 15 18 20 19 19 20 19 20 20 20 5 4 Class Distribution -------------------- 50% | Gunner 16% | Scavenger-Tank 10% | Tank 8% | Scavenger-Gunner 8% | Mutant Dominant Class ---------------- Mutant | -10/Materials Mutant | -10/Mines Tank | -9/Materials Tank | -9/Mines Gunner | -8/Materials Tank | -7/Factory Mutant | -7/Waste Gunner | -7/Factory Gunner | -7/Storage Gunner | -7/Recycling Gunner | -7/Scraptown Scavenger-Gunner | -5/Factory Gunner | -5/Extension Commander-Gunner | -5/Cetus Scavenger-Tank | -5/Archives Scavenger-Tank | -5/Hub_04(d) Scavenger-Tank | -4/Factory Mutant | -4/Garrison Resources | -11 -10 -10 -9 -9 -8 -7 -7 -7 -7 -7 -7 -5 -5 -5 -5 -5 -4 -4 ----------- Run | Yrd Mat Min Mat Min Mat Fac Was Fac Sto Rec Scr Fac Ext Cet Arc Hub Fac Gar Matter Collected 7560 | 261 9 31 1351 43 1056 47 66 714 779 236 126 1108 509 294 94 316 520 . Remotely . | . . . . . . . . . . . . . . . . . . . Salvage Created 13940 | 82 . 111 1833 30 2190 27 . 960 544 294 66 2230 1998 115 272 431 2757 . Parts 759 | 10 . 9 138 13 102 2 . 51 40 18 1 89 95 16 22 22 131 . Haulers Intercepted 13 | . . . 4 . 4 . . . 1 . . 2 . . . 1 1 . Recyclers Shooed 11 | . . 1 1 . 2 . . . 1 . . 2 . . . . 4 . Parts Field Recycled . | . . . . . . . . . . . . . . . . . . . Retrieved Matter . | . . . . . . . . . . . . . . . . . . . Parts Self-Destructed . | . . . . . . . . . . . . . . . . . . . Prevented . | . . . . . . . . . . . . . . . . . . . Parts Restored . | . . . . . . . . . . . . . . . . . . . Kills | -11 -10 -10 -9 -9 -8 -7 -7 -7 -7 -7 -7 -5 -5 -5 -5 -5 -4 -4 ------- Run | Yrd Mat Min Mat Min Mat Fac Was Fac Sto Rec Scr Fac Ext Cet Arc Hub Fac Gar Combat Hostiles Destroyed 232 | . . 4 40 4 51 . . 18 10 4 1 34 21 1 . 4 40 . Guns 112 | . . 2 29 . 20 . . 5 6 3 . 15 12 . . 4 16 . Cannons 52 | . . . 4 4 12 . . 13 4 1 1 8 4 1 . . . . AOE 60 | . . 2 7 . 19 . . . . . . 10 3 . . . 19 . Classes Destroyed 20 | 1 . 2 7 . 4 . . 2 . . 2 . 1 . . . 1 . Worker 20 | . . . . . 2 1 . . 1 . . 3 3 . . 2 8 . Builder 20 | . . . 2 . 1 . . 2 2 . . 2 8 . . . 3 . Tunneler 7 | 3 . . . . 1 . . . . . . 2 1 . . . . . Hauler 13 | . . . 4 . 4 . . . 1 . . 2 . . . 1 1 . Recycler 17 | . . . 1 . 2 . . 3 2 1 . 3 2 . . . 3 . Mechanic 3 | . . . . . 2 . . 1 . . . . . . . . . . Operator 12 | . . . 1 . . . . 1 . . . 1 . . 8 . 1 . Turret 1 | . . . . . . . . . . . 1 . . . . . . . Watcher 15 | . . . 5 . 1 . . 1 1 . . 2 3 . . 1 1 . Swarmer 63 | . . 2 11 4 10 . . . 4 . . 14 4 . . . 14 . Saboteur 1 | . . . . . . . . . . . . . . . . . 1 . Grunt 87 | . . 2 18 . 26 . . 11 . . . 11 6 . . 2 11 . Brawler 6 | . . . . . 2 . . 1 . . . . 1 . . . 2 . Duelist 6 | . . . 1 . 4 . . . . . . . . . . . 1 . Protector 1 | . . . . . 1 . . . . . . . . . . . . . Sentry 41 | . . . 10 . 8 . . 2 4 4 . 4 7 . . 1 1 . Hunter 11 | . . . . . . . . 2 . . . 1 2 . . . 6 . Programmer 12 | . . . . . . . . 2 2 . . 4 . . . . 4 . Behemoth 1 | . . . . . . . . . . . . . 1 . . . . . Cetus Guard 1 | . . . . . . . . . . . . . . 1 . . . . Lightning 1 | . . . . . . . . . . . . . . . . 1 . . Explorer 1 | . . . . . . . . . . . 1 . . . . . . . Savage 1 | . . . . . . . . . . . . . 1 . . . . . Best Kill Streak 16 | 3 . 4 6 4 6 1 . 6 6 1 1 9 11 1 2 3 16 . Combat Bots Only 9 | . . 4 6 4 6 . . 4 3 1 1 9 8 1 . 2 7 . Max Kills in Single Turn 8 | 1 . 2 4 2 3 1 . 2 2 1 1 3 3 1 1 2 8 . Gunslinging 1 | . . . . . . . . . . . . . . . . . 1 . Exploded 4 | . . 2 4 . 2 . . . . . . 3 2 . . . 4 . Melee . | . . . . . . . . . . . . . . . . . . . Uniques/NPCs Destroyed 1 | . . . . . . . . . . . . . . 1 . . . . A7 (-5/Cetus) Combat | -11 -10 -10 -9 -9 -8 -7 -7 -7 -7 -7 -7 -5 -5 -5 -5 -5 -4 -4 -------- Run | Yrd Mat Min Mat Min Mat Fac Was Fac Sto Rec Scr Fac Ext Cet Arc Hub Fac Gar Hostile Shots Fired 1443 | . 3 16 131 5 212 . . 69 99 18 128 127 133 24 4 67 341 66 Missed 421 | . 1 6 41 1 50 . . 20 30 8 37 40 39 6 1 16 102 23 Hits 1022 | . 2 10 90 4 162 . . 49 69 10 91 87 94 18 3 51 239 43 Melee 16 | . . . . . 6 . . . . . 1 . . . . . 9 . Projectile 1006 | . 2 10 90 4 156 . . 49 69 10 90 87 94 18 3 51 230 43 Critical Strikes 51 | . . . 6 . 7 . . 2 2 . 7 3 4 2 . 2 16 . Damage Taken 17397 | . 22 105 1167 33 2804 . . 710 825 84 1536 1627 1884 374 76 1063 4528 559 Core 2698 | . . 28 155 7 323 . . 61 50 . 272 230 159 43 . 210 674 486 Absorbed by Shields 704 | . . . . . . . . 17 . . . . 34 113 . . 485 55 Reduced by Siege Mode 293 | . . . . . . . . . . . . . . . . . 293 . Redirected to Shielding 12 | . . . . . 12 . . . . . . . . . . . . . Ignored by Resistances 42 | . . . . . . . . . . . . . . . . 42 . . Regen/Repaired (Parts) 146 | . . . . . . . 62 . . . . . . 62 . 13 9 . Core Remaining (%) 61 | 100 . 88 . 59 41 . . . . . 45 . . . . 35 . . Volleys Fired 591 | 4 . 7 85 3 87 1 . 49 44 7 7 84 52 24 30 24 83 . Largest 3 | 2 . 2 3 3 3 2 . 3 3 3 3 3 3 3 3 3 3 . Hottest 334 | 80 . 80 113 86 146 78 . 120 108 105 105 167 205 216 215 209 334 . Shots Fired 1459 | 8 . 13 246 9 214 2 . 137 114 21 17 204 122 54 58 68 172 . Gun 982 | 8 . 12 212 3 134 2 . 48 35 7 5 122 75 43 58 67 151 . Cannon 404 | . . . 29 6 61 . . 89 79 14 12 74 30 10 . . . . Launcher 71 | . . 1 5 . 19 . . . . . . 8 17 . . . 21 . Special 2 | . . . . . . . . . . . . . . 1 . 1 . . Kinetic 789 | . . . 206 9 101 1 . 137 114 21 17 101 . 8 3 34 37 . Thermal 419 | 8 . 12 25 . 47 . . . . . . 33 75 35 55 33 96 . Explosive 25 | . . 1 5 . 19 . . . . . . . . . . . . . Electromagnetic 224 | . . . 10 . 47 1 . . . . . 70 47 10 . . 39 . Robot Hit Streak 32 | 2 . 5 14 1 14 2 . 15 20 16 3 16 17 9 8 11 32 . Robot Miss Streak 9 | 2 . 1 3 2 4 . . 4 5 1 9 8 3 5 4 2 4 . Penetration Max 1 | . . . . . . . . 1 . . . 1 . . . 1 1 . Secondary Targets 15 | . . . 1 . 6 . . . . . . 1 . . . 1 6 . Max Gunslinging Chain 1 | . . . 1 . 1 . . . . . . 1 . . . 1 1 . Shots Hit Robots 921 | 3 . 8 160 3 148 5 . 79 51 13 3 135 75 40 36 44 118 . Core Hits 683 | 3 . 8 78 4 135 1 . 40 23 8 3 119 86 33 18 21 103 . Critical Kills 5 | . . . 1 . . . . . . 1 . . . . . . 3 . Critical Parts Destroyed 6 | . . . . . . . . . . . . . . . 1 3 2 . Critical Strikes 32 | . . . 3 . 1 . . 5 1 3 . 6 3 . 1 3 6 . Burn 5 | . . . . . 1 . . . . . . 3 1 . . . . . Destroy 12 | . . . 1 . . . . . . 1 . . . . 1 3 6 . Blast 11 | . . . 2 . . . . 5 1 2 . 1 . . . . . . Corrupt 4 | . . . . . . . . . . . . 2 2 . . . . . Melee Attacks 9 | . . . 5 1 . 3 . . . . . . . . . . . . Impact . | . . . . . . . . . . . . . . . . . . . Slashing 6 | . . . 5 1 . . . . . . . . . . . . . . Piercing . | . . . . . . . . . . . . . . . . . . . Sneak Attacks 3 | . . . . . . 3 . . . . . . . . . . . . Combat Hostiles . | . . . . . . . . . . . . . . . . . . . Follow-up Attacks . | . . . . . . . . . . . . . . . . . . . Damage Inflicted 31608 | 43 . 152 2766 97 5377 36 . 2392 1252 291 116 4118 3921 1457 1055 1395 7140 . Guns 16378 | 43 . 87 2089 . 1888 36 . 571 463 94 39 2075 1539 1250 1055 1374 3775 . Cannons 5941 | . . . 247 97 650 . . 1814 789 197 64 1528 348 207 . . . . Explosions 9206 | . . 65 409 . 2818 . . . . . . 515 2034 . . . 3365 . Melee . | . . . . . . . . . . . . . . . . . . . Ramming 83 | . . . 21 . 21 . . 7 . . 13 . . . . 21 . . Kinetic 10598 | . . . 2010 97 1070 16 . 2385 1252 291 103 1866 . 175 44 536 753 . Thermal 10810 | 43 . 87 216 . 1181 . . . . . . 818 1971 1075 1011 838 3570 . Explosive 3548 | . . 65 409 . 2300 . . . . . . . . . . . 774 . Electromagnetic 6569 | . . . 110 . 805 20 . . . . . 1434 1950 207 . . 2043 . Impact . | . . . . . . . . . . . . . . . . . . . Slashing . | . . . . . . . . . . . . . . . . . . . Piercing . | . . . . . . . . . . . . . . . . . . . Highest Corruption 31 | . . . . . 6 . . . . . 4 6 6 18 18 31 9 9 Average Corruption 6 | . . . . . 6 . . . . . 2 2 6 10 10 20 4 9 Corruption Purged 18 | . . . . . . . . . . . . . . . 18 . . . Corruption Blocked . | . . . . . . . . . . . . . . . . . . . Effects 167 | . . . . . 25 . . . . . 2 16 53 29 19 11 9 3 Message Errors 35 | . . . . . 6 . . . . . . 5 8 9 4 2 1 . Matter Fused 37 | . . . . . 4 . . . . . 1 5 15 7 3 1 . 1 Heat Flow Errors 25 | . . . . . 3 . . . . . . 3 9 3 2 2 2 1 Energy Discharges 16 | . . . . . 2 . . . . . . . 7 1 3 1 1 1 Parts Rejected 3 | . . . . . 1 . . . . . 1 . 1 . . . . . Parts Fused 1 | . . . . . . . . . . . . . . 1 . . . . Data Loss (minor) 24 | . . . . . 4 . . . . . . 1 6 4 4 2 3 . Data Loss (major) 8 | . . . . . 2 . . . . . . . 4 . 1 1 . . Misfires 4 | . . . . . 1 . . . . . . . 1 1 . . 1 . Alerts 4 | . . . . . 1 . . . . . . 1 1 . 1 . . . Misdirections 1 | . . . . . . . . . . . . . . . . 1 . . Weapon Failures 9 | . . . . . 1 . . . . . . 1 1 3 1 1 1 . Overload Shots 13 | . . . . . . . . . . . . . . . . . 13 . Overflow Damage 325 | . . . 13 . 39 . . 61 . 4 . 19 51 . . . 138 . Projectiles 89 | . . . 6 . . . . 61 . 4 . 18 . . . . . . Explosions 236 | . . . 7 . 39 . . . . . . 1 51 . . . 138 . Melee . | . . . . . . . . . . . . . . . . . . . Knockbacks 37 | . . . 1 . 7 . . 6 5 . . 17 . . . 1 . . Impact 2 | . . . . . 1 . . . . . . . . . . 1 . . Kinetic 35 | . . . 1 . 6 . . 6 5 . . 17 . . . . . . Secondary . | . . . . . . . . . . . . . . . . . . . Self-Inflicted Damage 430 | . . . 70 . 279 . . 3 . . 6 . . . . . 72 . Shots 11 | . . . 2 . 7 . . . . . . . . . . . 2 . Rammed 8 | . . . . . 2 . . 1 . . 2 . . . . 3 . . Targets Rammed 10 | . . . 1 . 3 . . 1 . . 2 . . . . 3 . . Kicked 1 | . . . 1 . . . . . . . . . . . . . . . Crushed 1 | . . . . . 1 . . . . . . . . . . . . . Highest Temperature 572 | 36 . 84 149 36 572 . . 436 64 4 96 195 167 300 188 276 486 129 Average Temperature 88 | 16 . 35 37 17 139 . . 119 25 4 38 24 64 95 34 111 126 66 Received Heat Transfer 4225 | . 12 36 528 . 1197 . . 282 102 30 779 279 322 9 . 279 370 . Effects 19 | . . . . . 10 . . 1 . . . . . . . 1 7 . Shutdowns 4 | . . . . . 2 . . . . . . . . . . . 2 . Energy Bleed 4 | . . . . . 3 . . . . . . . . . . 1 . . Interference 7 | . . . . . 4 . . . . . . . . . . . 3 . Matter Decay 2 | . . . . . 1 . . . . . . . . . . . 1 . Short Circuit 1 | . . . . . . . . . . . . . . . . . 1 . Damage (minor) 1 | . . . . . . . . 1 . . . . . . . . . . Siege Activations 3 | . . . . . . . . . . . . . . . . . 3 . Total Turns 116 | . . . . . . . . . . . . . . . . . 116 . Longest Duration 49 | . . . . . . . . . . . . . . . . . 49 . Martial Activations . | . . . . . . . . . . . . . . . . . . . Shielding Activations . | . . . . . . . . . . . . . . . . . . . Robots Disrupted 1 | . . . . . . . . . . . . . 1 . . . . . Combat Hostiles 1 | . . . . . . . . . . . . . 1 . . . . . Robots Corrupted 8 | . . . . . . . . . . . . 1 2 . . . 5 . Combat Hostiles 8 | . . . . . . . . . . . . 1 2 . . . 5 . Parts Fried 26 | . . . . . . . . . . . . 6 6 . . . 14 . Impact Corruptions . | . . . . . . . . . . . . . . . . . . . Robots Melted . | . . . . . . . . . . . . . . . . . . . Combat Hostiles . | . . . . . . . . . . . . . . . . . . . Parts Melted 19 | . . . 1 . 3 . . . . . . 2 4 2 2 3 2 . Heat Transferred 15129 | 100 . 200 500 . 1993 . . . . . . 1650 3450 1388 1332 1036 3480 . Parts Sabotaged . | . . . . . . . . . . . . . . . . . . . Parts Stolen . | . . . . . . . . . . . . . . . . . . . Parts Stripped . | . . . . . . . . . . . . . . . . . . . Power Chain Reactions 18 | . . . . . 5 . . . . . . 4 6 . . . 3 . Alert | -11 -10 -10 -9 -9 -8 -7 -7 -7 -7 -7 -7 -5 -5 -5 -5 -5 -4 -4 ------- Run | Yrd Mat Min Mat Min Mat Fac Was Fac Sto Rec Scr Fac Ext Cet Arc Hub Fac Gar Maximum Alert Level 4 | . . . 2 1 3 2 . 3 2 1 . 2 1 2 1 3 4 3 Low Security (%) 22 | 100 100 100 14 51 44 . 100 9 . 2 . 10 39 4 8 11 8 . Level 1 38 | . . . 16 48 5 47 . 41 41 97 . 53 60 91 91 7 28 . Level 2 27 | . . . 69 . 14 52 . 26 58 . . 35 . 3 . 71 9 . Level 3 11 | . . . . . 35 . . 22 . . . . . . . 9 49 100 Level 4 . | . . . . . . . . . . . . . . . . . 4 . Level 5 . | . . . . . . . . . . . . . . . . . . . High Security . | . . . . . . . . . . . . . . . . . . . Max Security . | . . . . . . . . . . . . . . . . . . . Sterilizations 1 | . . . . . 1 . . . . . . . . . . . . . Peak Influence 1217 | 10 30 96 603 233 1057 476 115 834 544 374 . 556 357 413 348 720 1217 843 Initial 843 | . . . 21 153 86 476 115 . 371 193 . . 258 188 136 66 329 843 Average 370 | 1 9 54 372 191 454 405 33 452 447 307 . 324 214 295 265 500 668 839 Influence Increases 11180 | 15 35 106 1194 90 1650 5 1 1471 487 397 . 1154 969 505 340 1141 1620 . Destroy 0b10 Robot/C 5460 | . . 80 800 80 1000 . . 560 200 80 . 680 520 220 80 360 800 . Destroy 0b10 Robot/NC 585 | 15 . . 65 . 70 5 . 55 35 5 . 75 85 10 40 40 85 . Destroy Leader 1062 | . . 20 198 10 210 . . 144 74 . . 138 56 10 . 88 114 . Allied During Kill 1066 | . . . . . . . . 282 . . . . 112 240 120 312 . . Successful Hack 197 | . 5 . 17 . 13 . . 16 12 70 . . 35 . . 8 21 . Select Force Hacks 360 | . 30 . 30 . 30 . . 30 . 180 . 30 . . . . 30 . Disable Machine 1065 | . . . 15 . 60 . . 75 105 45 . 105 60 15 90 225 270 . Anti-Garrison Action 200 | . . . . . . . . 200 . . . . . . . . . . Destroy Structure 795 | . . 6 54 . 177 . 1 79 31 17 . 66 26 10 10 108 210 . Lose Combat Pursuer 390 | . . . 15 . 90 . . 30 30 . . 60 75 . . . 90 . Influence Decreases 10347 | 15 35 50 855 262 825 722 332 653 809 589 304 626 1161 500 491 658 1088 372 Entered New Map 3709 | . . . 35 242 137 572 216 . 447 303 304 . 270 148 205 124 344 362 Time Decay 5223 | 15 35 50 670 20 578 150 116 488 342 286 . 526 601 342 286 254 464 . Lost Part 490 | . . . . . 110 . . 20 20 . . 100 90 10 . . 130 10 Lost Ally 625 | . . . . . . . . 145 . . . . 200 . . 280 . . Purge Threat 300 | . . . 150 . . . . . . . . . . . . . 150 . Squads Dispatched 48 | . 2 . 3 . 8 . . 15 2 . . 6 1 . . 3 8 . Investigation 13 | . 2 . 1 . 2 . . 3 . . . 4 . . . . 1 . Extermination 11 | . . . . . . . . 3 2 . . 2 . . . 1 3 . Reinforcement 17 | . . . 1 . 3 . . 6 . . . . 1 . . 2 4 . Assault 4 | . . . 1 . 3 . . . . . . . . . . . . . Garrison 3 | . . . . . . . . 3 . . . . . . . . . . Intercept . | . . . . . . . . . . . . . . . . . . . Searches Triggered . | . . . . . . . . . . . . . . . . . . . Construction Impeded 5 | . . . . . 1 . . 1 . . . . 1 . . . 2 . Haulers Reinforced 3 | . . . . . . . . 1 . . . . . . . 1 1 . Active Scanning Responses . | . . . . . . . . . . . . . . . . . . . Cargo Convoy Interrupts 1 | . . . . . . . . . . . . . . . . . 1 . Stealth | -11 -10 -10 -9 -9 -8 -7 -7 -7 -7 -7 -7 -5 -5 -5 -5 -5 -4 -4 --------- Run | Yrd Mat Min Mat Min Mat Fac Was Fac Sto Rec Scr Fac Ext Cet Arc Hub Fac Gar Distress Signals 25 | . . . 2 . 4 . . 5 3 . . 1 2 2 . 2 4 . Communications Jammed . | . . . . . . . . . . . . . . . . . . . Distress Signals . | . . . . . . . . . . . . . . . . . . . Times Spotted 421 | . 2 5 49 4 75 2 1 38 17 2 21 42 34 13 20 20 66 10 Peak Tracking Total 16 | . 2 3 5 4 7 1 1 5 5 1 14 5 9 5 2 4 16 10 Tactical Retreats 21 | . . . 1 . 5 . . 2 2 . 1 3 4 . . . 3 . Traps | -11 -10 -10 -9 -9 -8 -7 -7 -7 -7 -7 -7 -5 -5 -5 -5 -5 -4 -4 ------- Run | Yrd Mat Min Mat Min Mat Fac Was Fac Sto Rec Scr Fac Ext Cet Arc Hub Fac Gar Traps Triggered 16 | . 1 . 2 . . 1 . 4 1 . . 1 . . . 2 2 2 Indirectly 1 | . . . . . . . . . . . . . . . . . 1 . Trap Hack Attempts . | . . . . . . . . . . . . . . . . . . . Triggered . | . . . . . . . . . . . . . . . . . . . Disarmed . | . . . . . . . . . . . . . . . . . . . Reprogrammed . | . . . . . . . . . . . . . . . . . . . Reused . | . . . . . . . . . . . . . . . . . . . Traps Extracted . | . . . . . . . . . . . . . . . . . . . Installed 1 | . . . . . . . . . . . 1 . . . . . . . Triggered . | . . . . . . . . . . . . . . . . . . . Most Traps Carried 3 | . . . . . . . . . . . 3 1 1 1 . . . . Machines | -11 -10 -10 -9 -9 -8 -7 -7 -7 -7 -7 -7 -5 -5 -5 -5 -5 -4 -4 ---------- Run | Yrd Mat Min Mat Min Mat Fac Was Fac Sto Rec Scr Fac Ext Cet Arc Hub Fac Gar Machines Disabled 76 | . . . 2 . 4 . . 5 7 3 2 7 6 1 6 15 18 . Max in Single Turn 5 | . . . 1 . 1 . . 1 1 2 1 3 1 1 1 2 5 . Garrison Access 1 | . . . . . . . . 1 . . . . . . . . . . Network Hub 1 | . . . . . . . . . . . . . . . . 1 . . Machines Repaired . | . . . . . . . . . . . . . . . . . . . Machines Dismantled 6 | . . . . . . . . . . . . . 4 1 . 1 . . Machines Sabotaged . | . . . . . . . . . . . . . . . . . . . Overloaded Fab Kills . | . . . . . . . . . . . . . . . . . . . Hacking | -11 -10 -10 -9 -9 -8 -7 -7 -7 -7 -7 -7 -5 -5 -5 -5 -5 -4 -4 --------- Run | Yrd Mat Min Mat Min Mat Fac Was Fac Sto Rec Scr Fac Ext Cet Arc Hub Fac Gar Machines Accessed 79 | . 3 . 11 . 7 1 . 10 5 12 8 5 11 . . 1 5 . Terminals 47 | . 2 . 8 . 3 1 . 7 5 6 . 2 10 . . 1 2 . Fabricators 1 | . . . . . . . . . . . . . . . . . 1 . Repair Stations . | . . . . . . . . . . . . . . . . . . . Recycling Units 16 | . 1 . 1 . 2 . . 1 . 6 . 3 1 . . . 1 . Scanalyzers 5 | . . . 2 . 2 . . 1 . . . . . . . . . . Garrison Access 2 | . . . . . . . . 1 . . . . . . . . 1 . Total Hacks 209 | . 5 . 34 . 22 2 . 16 8 23 56 7 20 . . 2 14 . Successful 134 | . 2 . 23 . 13 . . 6 4 14 56 3 6 . . 1 6 . Failed 73 | . 3 . 10 . 8 2 . 10 4 9 . 4 14 . . 1 8 . Catastrophic 21 | . 1 . 1 . 1 1 . 2 2 2 . 3 4 . . . 4 . Database Lockouts 2 | . . . 1 . 1 . . . . . . . . . . . . . Manual 81 | . 6 . 17 . 9 2 . 9 3 20 . 6 2 1 . . 6 . Terminals 103 | . 4 . 23 . 8 2 . 11 8 16 . 2 19 . . 2 8 . Fabricators 4 | . . . . . . . . . . . . . . . . . 4 . Repair Stations . | . . . . . . . . . . . . . . . . . . . Recycling Units 24 | . 1 . 1 . 6 . . 2 . 7 . 5 1 . . . 1 . Scanalyzers 20 | . . . 10 . 8 . . 2 . . . . . . . . . . Garrison Access 2 | . . . . . . . . 1 . . . . . . . . 1 . Terminal Hacks 76 | . . . 3 . 1 . . 2 3 1 56 . 6 . . 1 3 . Record 51 | . . . . . . . . . . . 51 . . . . . . . Part Schematic 2 | . . . . . . . . 1 . . . . . . . 1 . . Robot Analysis 5 | . . . . . . . . . . 1 4 . . . . . . . Open Door 8 | . . . . . . . . . 2 . . . 6 . . . . . Branch Access Points 2 | . . . 1 . . . . . . . . . . . . . 1 . Terminal Index 2 | . . . 1 . . . . 1 . . . . . . . . . . Scanalyzer Index 1 | . . . . . 1 . . . . . . . . . . . . . Alert Level 2 | . . . . . . . . . 1 . . . . . . . 1 . Unreport Threat 2 | . . . 1 . . . . . . . . . . . . . 1 . Proto ID Catalog 1 | . . . . . . . . . . . 1 . . . . . . . Fabricator Hacks . | . . . . . . . . . . . . . . . . . . . Repair Station Hacks . | . . . . . . . . . . . . . . . . . . . Recycling Unit Hacks 2 | . . . . . 1 . . . . 1 . . . . . . . . Retrieve Components 2 | . . . . . 1 . . . . 1 . . . . . . . . Scanalyzer 17 | . . . 10 . 6 . . 1 . . . . . . . . . . Insert Component 7 | . . . 4 . 3 . . . . . . . . . . . . . Analyze 7 | . . . 5 . 2 . . . . . . . . . . . . . Retrieve Study 3 | . . . 1 . 1 . . 1 . . . . . . . . . . Garrison Access Hacks 1 | . . . . . . . . . . . . . . . . . 1 . Unlock Access 1 | . . . . . . . . . . . . . . . . . 1 . Unauthorized Hacks 38 | . 2 . 10 . 5 . . 3 1 12 . 3 . . . . 2 . Terminals 23 | . 1 . 9 . 4 . . 1 1 6 . . . . . . 1 . Botnet 10 | . 1 . 2 . 2 . . 1 1 2 . . . . . . 1 . Operators 2 | . . . 1 . . . . . . 1 . . . . . . . . Skim 11 | . . . 6 . 2 . . . . 3 . . . . . . . . Fabricators . | . . . . . . . . . . . . . . . . . . . Repair Stations . | . . . . . . . . . . . . . . . . . . . Recycling Units 14 | . 1 . 1 . 1 . . 1 . 6 . 3 . . . . 1 . Tunnel 12 | . 1 . 1 . 1 . . 1 . 6 . 1 . . . . 1 . Fedlink 2 | . . . . . . . . . . . . 2 . . . . . . Scanalyzers . | . . . . . . . . . . . . . . . . . . . Garrison Access 1 | . . . . . . . . 1 . . . . . . . . . . Jam 1 | . . . . . . . . 1 . . . . . . . . . . Data Cores Recovered . | . . . . . . . . . . . . . . . . . . . Used . | . . . . . . . . . . . . . . . . . . . Hacking Detections 52 | . 2 . 7 . 6 1 . 9 4 6 . 4 9 . . 1 3 . Full Trace Events 2 | . . . 1 . . . . 1 . . . . . . . . . . Feedback Events 1 | . . . . . . . . 1 . . . . . . . . . . Hackware Fried 1 | . . . . . . . . 1 . . . . . . . . . . Feedback Blocked . | . . . . . . . . . . . . . . . . . . . Robot Schematics Acquired . | . . . . . . . . . . . . . . . . . . . Robots Built . | . . . . . . . . . . . . . . . . . . . Authchips . | . . . . . . . . . . . . . . . . . . . Time . | . . . . . . . . . . . . . . . . . . . Total Robot Build Rating . | . . . . . . . . . . . . . . . . . . . Part Schematics Acquired 8 | . . . 4 . 2 . . 1 . . . . . . . 1 . . Parts Built . | . . . . . . . . . . . . . . . . . . . Authchips . | . . . . . . . . . . . . . . . . . . . Time . | . . . . . . . . . . . . . . . . . . . Total Part Build Rating . | . . . . . . . . . . . . . . . . . . . Part Studies Acquired 3 | . . . 1 . 1 . . 1 . . . . . . . . . . Parts Repaired . | . . . . . . . . . . . . . . . . . . . Time . | . . . . . . . . . . . . . . . . . . . Parts Recycled . | . . . . . . . . . . . . . . . . . . . Recycled Matter . | . . . . . . . . . . . . . . . . . . . Retrieved Matter . | . . . . . . . . . . . . . . . . . . . Retrieved Components 12 | . . . . . 10 . . . . 2 . . . . . . . . Parts Scanalyzed 6 | . . . 4 . 2 . . . . . . . . . . . . . Part Schematics Acquired 6 | . . . 4 . 2 . . . . . . . . . . . . . Parts Damaged 1 | . . . . . 1 . . . . . . . . . . . . . Bothacking | -11 -10 -10 -9 -9 -8 -7 -7 -7 -7 -7 -7 -5 -5 -5 -5 -5 -4 -4 ------------ Run | Yrd Mat Min Mat Min Mat Fac Was Fac Sto Rec Scr Fac Ext Cet Arc Hub Fac Gar Used RIF Installer . | . . . . . . . . . . . . . . . . . . . Robots Hacked 1 | . . . . . . 1 . . . . . . . . . . . . Non-combat 1 | . . . . . . 1 . . . . . . . . . . . . Combat . | . . . . . . . . . . . . . . . . . . . Robot Hacks Applied 1 | . . . . . . 1 . . . . . . . . . . . . find_chute 1 | . . . . . . 1 . . . . . . . . . . . . Relay Couplers Released . | . . . . . . . . . . . . . . . . . . . Fabnet Peak Effective % . | . . . . . . . . . . . . . . . . . . . Robots Rewired 11 | . . . . . . 1 . . . . . . 10 . . . . . Allies Hacked 1 | . . . . . . . . 1 . . . . . . . . . . Hacks Repelled . | . . . . . . . . . . . . . . . . . . . Allies | -11 -10 -10 -9 -9 -8 -7 -7 -7 -7 -7 -7 -5 -5 -5 -5 -5 -4 -4 -------- Run | Yrd Mat Min Mat Min Mat Fac Was Fac Sto Rec Scr Fac Ext Cet Arc Hub Fac Gar Total Allies 51 | . . . . . . 1 20 . . . . . 25 5 . . . . Largest Group 21 | . . . . . . 1 21 20 . . . . 14 19 16 16 . . Highest-Rated Group 973 | . . . . . . 16 516 502 . . . . 524 973 709 709 . . Highest-Rated Ally 159 | . . . . . . 16 35 35 . . . . 159 159 96 96 . . Total Orders 1 | . . . . . . . . . . . . . . . . 1 . . STAY 1 | . . . . . . . . . . . . . . . . 1 . . Ally Attacks 340 | . . . . . . 1 6 96 . . . . 55 49 7 126 . . Total Damage 8083 | . . . . . . . 402 1668 . . . . 1328 1047 106 3532 . . Kills 56 | . . . . . . . 2 13 . . . . 5 12 4 20 . . Allies Corrupted 4 | . . . . . . . . . . . . . . . . 4 . . Allies Melted 1 | . . . . . . . . . . . 1 . . . . . . . Intel | -11 -10 -10 -9 -9 -8 -7 -7 -7 -7 -7 -7 -5 -5 -5 -5 -5 -4 -4 ------- Run | Yrd Mat Min Mat Min Mat Fac Was Fac Sto Rec Scr Fac Ext Cet Arc Hub Fac Gar Active Infowar (turns) 4897 | 12 128 121 234 . 823 304 431 466 . . . 1120 112 . . 260 886 . Sensors 1176 | . . . . . . . . . . . . 976 112 . . . 88 . Terrain 298 | 12 128 121 37 . . . . . . . . . . . . . . . Structural 1272 | . . . 197 . . . . . . . . . . . . 260 815 . Seismic 2140 | . . . . . 823 304 431 466 . . . 116 . . . . . . T.N.C. 66 | . . . . . . . . . . . . 66 . . . . . . Robot Analysis Total 5 | . . . . . . . . . . 1 4 . . . . . . . Derelict Logs Recovered 1 | . . 1 . . . . . . . . . . . . . . . . Drone Launches . | . . . . . . . . . . . . . . . . . . . Drone Recoveries . | . . . . . . . . . . . . . . . . . . . Exploration | -11 -10 -10 -9 -9 -8 -7 -7 -7 -7 -7 -7 -5 -5 -5 -5 -5 -4 -4 ------------- Run | Yrd Mat Min Mat Min Mat Fac Was Fac Sto Rec Scr Fac Ext Cet Arc Hub Fac Gar Turns Passed 17760 | 81 128 121 2589 49 1967 304 431 1328 765 636 2771 1469 1925 776 638 550 1174 58 Spaces Moved 10109 | 49 106 77 1098 15 938 273 354 930 507 524 2137 856 846 363 152 262 556 66 Core 112 | 10 . . . . . . . . . . . . . . . . 39 63 Treads 3534 | . . . 358 15 843 . . . . . . 178 846 363 152 262 517 . Legs 965 | 39 106 77 740 . . . . . . . . . . . . . . 3 Wheels 5498 | . . . . . 95 273 354 930 507 524 2137 678 . . . . . . Hover . | . . . . . . . . . . . . . . . . . . . Flight . | . . . . . . . . . . . . . . . . . . . Fastest Speed 50 | 50 120 120 105 250 115 100 100 115 115 115 100 95 164 160 160 160 50 50 Average Speed 133 | 111 120 120 138 250 162 100 107 115 115 115 114 122 184 166 160 160 152 52 Slowest Speed 250 | 120 120 120 250 250 170 100 115 115 115 115 115 246 246 246 160 160 160 100 Overloaded Moves . | . . . . . . . . . . . . . . . . . . . Propulsion Burnouts . | . . . . . . . . . . . . . . . . . . . Robots Hopped . | . . . . . . . . . . . . . . . . . . . Potential Cave-ins . | . . . . . . . . . . . . . . . . . . . Cave-ins Triggered . | . . . . . . . . . . . . . . . . . . . Exploration Rate (%) 49 | 5 36 20 92 9 70 9 87 32 62 94 93 19 84 71 83 32 25 22 Regions Visited 18 Branch Regions 9 Pre-discovered Areas 24 | . 1 . 7 . 1 . . 1 . 6 5 2 . . . . 1 . Known Exits Taken 6 | . . . 1 1 1 . . 1 . . . 1 . . . . 1 . Unknown Exits Taken 10 | 1 1 1 . . . . . . 1 1 1 . 1 1 1 1 . . Scrap Searched 3 | . . . . . . . . . . . 3 . . . . . . . Spaces Dug 14 | . . . 5 . . . . 3 . . . 3 . . . . 3 . Terrain Destroyed 485 | . . 9 44 . 177 . . 32 26 19 5 31 12 1 5 18 106 . Melee 5 | . . . 5 . . . . . . . . . . . . . . . Projectile 132 | . . . 2 . 2 . . 32 26 9 5 13 1 1 5 18 18 . AOE 348 | . . 9 37 . 175 . . . . 10 . 18 11 . . . 88 . Terrain Rammed 2 | . . . 2 . . . . . . . . . . . . . . . Walls Destroyed . | . . . . . . . . . . . . . . . . . . . Machines Disabled . | . . . . . . . . . . . . . . . . . . . Actions | -11 -10 -10 -9 -9 -8 -7 -7 -7 -7 -7 -7 -5 -5 -5 -5 -5 -4 -4 --------- Run | Yrd Mat Min Mat Min Mat Fac Was Fac Sto Rec Scr Fac Ext Cet Arc Hub Fac Gar Total 13190 | 63 107 91 1985 19 1211 301 405 1080 606 547 2446 1124 1088 489 487 332 720 89 Wait 1678 | . . 4 684 . 97 14 40 69 18 3 270 89 17 37 295 7 34 . Move 10093 | 48 105 76 1097 14 937 273 353 929 506 523 2136 855 845 362 151 261 556 66 Hop . | . . . . . . . . . . . . . . . . . . . Pick Up 136 | 4 2 2 23 . 16 2 3 9 9 5 12 13 5 13 2 8 8 . Fast Attach 122 | 7 . . 19 . 16 3 1 5 9 1 3 24 11 8 4 3 8 . Attach 66 | . . . 5 . 13 1 . 3 5 1 1 11 6 4 1 2 12 1 Detach 21 | . . . 3 . 3 1 . . 3 . . 5 1 3 . . 2 . Swap 126 | . . 2 22 1 12 2 4 10 . . 2 19 15 8 1 13 15 . Drop 173 | . . . 39 . 27 1 4 5 12 7 12 24 8 21 3 8 2 . Fire 591 | 4 . 7 85 3 87 1 . 49 44 7 7 84 52 24 30 24 83 . Melee 9 | . . . 5 1 . 3 . . . . . . . . . . . . Ram 5 | . . . 2 . . . . 1 . . 2 . . . . . . . Kick 1 | . . . 1 . . . . . . . . . . . . . . . Crush 6 | . . . . . 3 . . . . . . . . . . 3 . . Escape Stasis 23 | . . . . . . . . . . . . . 1 . . . . 22 Rewire 95 | . . . . . . . . . . . . . 95 . . . . . Trap 1 | . . . . . . . . . . . 1 . . . . . . . Miscellaneous 44 | . . . . . . . . . . . . . 32 9 . 3 . . Route ------- -11/Scrapyard -10/Materials -10/Mines -9/Materials (discovered 4 exits: *Mat x3 / *Min) -9/Mines (discovered 3 exits: *Mat x2 / [*Zio]) -8/Materials (discovered 3 exits: *Fac x3) -7/Factory -7/Waste -7/Factory -7/Storage (discovered 2 exits: [*Fac] / *Rec) -7/Recycling (discovered 2 exits: *Fac / *Scr) -7/Scraptown (discovered 2 exits: *Fac x2) -5/Factory (discovered 3 exits: *Upp x2 / *Ext) -5/Extension (discovered 2 exits: *Fac / *Cet) -5/Cetus (discovered 2 exits: *Fac / [*Arc]) -5/Archives (discovered 2 exits: *Fac / *Hub) -5/Hub_04(d) (discovered 2 exits: *Fac x2) -4/Factory (discovered 7 exits: Res x3 / Upp x2 / Arm / Gar) -4/Garrison History --------- Turn | Location | Event 19 | -11/Scrapyard | Discovered new exit (range 16) 82 | -11/Scrapyard | Entered Materials 204 | -10/Materials | Discovered new exit (range 6) 210 | -10/Materials | Entered Mines 217 | -10/Mines | Received a Rocket Launcher from a helpful Derelict 303 | -10/Mines | Build established: Mutant 303 | -10/Mines | Learned 8 Materials zone layouts 310 | -10/Mines | Discovered new exit (range 8) 331 | -10/Mines | Entered Materials 331 | -9/Materials | Evolved 2 slots: Propulsion x1, Weapon x1 332 | -9/Materials | Identified exit to Materials 563 | -9/Materials | Discovered new exit (range 8) 748 | -9/Materials | Central database locked down 789 | -9/Materials | Identified exit to Mines 842 | -9/Materials | Discovered exit to Materials (range 16) 879 | -9/Materials | Build established: Tank 1268 | -9/Materials | Build established: Scavenger-Tank 1531 | -9/Materials | First assault squad dispatched 1540 | -9/Materials | Discovered exit to Materials (range 10) 1812 | -9/Materials | Learned location of Recycling (-7) 1884 | -9/Materials | Learned location of 2 exits from Materials 1914 | -9/Materials | Build established: Tank 1946 | -9/Materials | Learned location of Mines (-9) 2064 | -9/Materials | Learned 2 Storage zone layouts 2920 | -9/Materials | Entered Mines 2921 | -9/Mines | A Derelict revealed a hidden shortcut to a safe place 2969 | -9/Mines | Entered Materials 2969 | -8/Materials | Evolved 2 slots: Utility x2 2970 | -8/Materials | Identified exit to Factory 3391 | -8/Materials | Build established: Gunner 3948 | -8/Materials | Lost 3 parts (1n1u1w) 4026 | -8/Materials | Lost 3 parts (1u2w) 4169 | -8/Materials | First assault squad dispatched 4201 | -8/Materials | Central database locked down 4378 | -8/Materials | Discovered exit to Factory (range 4) 4698 | -8/Materials | Core integrity fell below 50% 4861 | -8/Materials | Sterilization system engaged 4861 | -8/Materials | Non-combat units ordered to evacuate 4936 | -8/Materials | Entered Factory 4936 | -7/Factory | Evolved 2 slots: Propulsion x1, Utility x1 4937 | -7/Factory | Identified exit to Storage 5240 | -7/Factory | Sucked down chute 5240 | -7/Factory | Entered Waste 5241 | -7/Waste | Joined by Warlord forces that had cleared the area 5265 | -7/Waste | 1 allies followed down the chute 5295 | -7/Waste | Discovered new exit (range 12) 5310 | -7/Waste | A Compactor rumbled back to life 5310 | -7/Waste | Spotted C-40 Crusher 5310 | -7/Waste | Allies destroyed C-40 Crusher 5671 | -7/Waste | Entered Factory 5671 | -7/Factory | Accompanied by 20 allies 5713 | -7/Factory | Garrison activated, responded to threat 5770 | -7/Factory | Lost 11 allies 6245 | -7/Factory | P-60 Hacker assimilated allied BK-BZI(b) 6757 | -7/Factory | Discovered exit to Storage (range 12) 6794 | -7/Factory | Hacking Suite fried by hacking feedback 6999 | -7/Factory | Entered Storage 7578 | -7/Storage | Discovered new exit (range 15) 7760 | -7/Storage | Used back door to open Recycling access 7760 | -7/Storage | Discovered new exit (range 4) 7764 | -7/Storage | Entered Recycling 8015 | -7/Recycling | Discovered new exit (range 15) 8275 | -7/Recycling | Scanned before Scraplab entrance 8388 | -7/Recycling | Entered Scraplab 8398 | -7/Recycling | Discovered new exit (range 3) 8400 | -7/Recycling | Entered Scraptown 8496 | -7/Scraptown | Visited Symbiants 8522 | -7/Scraptown | Visited Assassins FH 8544 | -7/Scraptown | Visited Awakened 8557 | -7/Scraptown | Visited The Evicted 8572 | -7/Scraptown | Visited Junk Repository 8596 | -7/Scraptown | Visited UFD Registry 8596 | -7/Scraptown | Registered with UFD as "Scrapmind" 8612 | -7/Scraptown | Visited TADAMA 8649 | -7/Scraptown | Visited Comm Corps 8739 | -7/Scraptown | Heard Great Nut preacher, LISTEN AND RECITE! 8740 | -7/Scraptown | Discovered new exit (range 11) 9486 | -7/Scraptown | Visited Curators Association 9527 | -7/Scraptown | Visited Science Testing Area 9545 | -7/Scraptown | Visited Science Guys 9579 | -7/Scraptown | Visited Scrap Suit Storage 9812 | -7/Scraptown | Visited Analyses Database 9837 | -7/Scraptown | Visited Research Penetration Think Tank 9857 | -7/Scraptown | Visited A0-MCA Data Center 9866 | -7/Scraptown | Given a B+ rating by A0-MCA 9873 | -7/Scraptown | Found A0-MCA's Component Scanner 10005 | -7/Scraptown | Visited Chapter 10 10046 | -7/Scraptown | Visited Junk Repository 10080 | -7/Scraptown | Visited Cartography Club 10298 | -7/Scraptown | Learned location of Upper Caves (-4) 10298 | -7/Scraptown | Learned 8 Materials zone layouts 10298 | -7/Scraptown | Learned 12 Factory zone layouts 10298 | -7/Scraptown | Learned 4 Access zone layouts 10298 | -7/Scraptown | Learned 4 Storage zone layouts 10298 | -7/Scraptown | Learned 12 Upper Caves zone layouts 10298 | -7/Scraptown | Learned 4 Hub_04(d) zone layouts 10298 | -7/Scraptown | Learned Factory emergency access door positions 10298 | -7/Scraptown | Learned location of 1 exit from Research 10298 | -7/Scraptown | Learned location of 1 exit from Upper Caves 10298 | -7/Scraptown | Learned location of 2 exits from Upper Caves 10511 | -7/Scraptown | Discovered new exit (range 3) 10533 | -7/Scraptown | Warned about trapping Scraptown 10645 | -7/Scraptown | Met Optimus 10645 | -7/Scraptown | Accepted into 0bPrime 11014 | -7/Scraptown | Civil war broke out across Scraptown 11036 | -7/Scraptown | Found PL-3XN's Ring of Power 11048 | -7/Scraptown | Found Siege Articulator 11066 | -7/Scraptown | Found Deep Structural Scanner 11147 | -7/Scraptown | Core integrity fell below 50% 11171 | -7/Scraptown | Entered Factory 11171 | -5/Factory | Evolved 4 slots: Power x1, Propulsion x1, Utility x2 11172 | -5/Factory | Identified exit to Upper Caves 11180 | -5/Factory | Lost 6 parts (1p3u2w) 11199 | -5/Factory | Lost 3 allies 11259 | -5/Factory | Destroyed 9 combat bots 11386 | -5/Factory | Loaded intel: 8 recycling unit locations 11579 | -5/Factory | Build established: Scavenger-Gunner 12031 | -5/Factory | Learned location of Protoforge (-2) 12162 | -5/Factory | Lost 6 parts (1p3n1u1w) 12574 | -5/Factory | Discovered new exit (range 15) 12639 | -5/Factory | Identified exit to Extension 12640 | -5/Factory | Entered Extension 12691 | -5/Extension | Build established: Gunner 12740 | -5/Extension | Rescued a captive Derelict 12748 | -5/Extension | Rescued a captive Derelict 12847 | -5/Extension | Rescued a captive Derelict 12848 | -5/Extension | Rescued a captive Derelict 13163 | -5/Extension | Build established: Scavenger-Gunner 13187 | -5/Extension | Spotted B-75 Beast 13196 | -5/Extension | Spotted B-75 Beast 13204 | -5/Extension | Allies destroyed B-75 Beast 13215 | -5/Extension | Disrupted transfer network 13243 | -5/Extension | Destroyed B-75 Beast 13245 | -5/Extension | Lost 6 allies 13296 | -5/Extension | Lost 3 parts (1n1u1w) 13685 | -5/Extension | Destroyed 8 combat bots 13824 | -5/Extension | Build established: Gunner 13918 | -5/Extension | Lost 3 allies 13942 | -5/Extension | Rescued a captive Derelict 14007 | -5/Extension | Rescued A7 14064 | -5/Extension | Rescued a captive Derelict 14066 | -5/Extension | Rescued a captive Derelict 14112 | -5/Extension | Rescued a captive Derelict 14126 | -5/Extension | Rescued a captive Derelict 14131 | -5/Extension | Rescued a captive Derelict 14285 | -5/Extension | Rescued a captive Derelict 14367 | -5/Extension | Rescued a captive Derelict 14372 | -5/Extension | Rescued a captive Derelict 14427 | -5/Extension | Rescued a captive Derelict 14429 | -5/Extension | Rescued a captive Derelict 14477 | -5/Extension | Discovered new exit (range 10) 14478 | -5/Extension | Discovered new exit (range 6) 14565 | -5/Extension | Entered Cetus 14565 | -5/Cetus | Accompanied by 14 allies (A7) 14570 | -5/Cetus | Acquired a Cetus Manufacturing Module code from A7 14594 | -5/Cetus | Spotted Cetus Guard 14594 | -5/Cetus | Spotted Cetus Guard 14597 | -5/Cetus | Spotted Cetus Guard 14597 | -5/Cetus | Spotted Cetus Guard 14600 | -5/Cetus | Allies destroyed Cetus Guard 14607 | -5/Cetus | Destroyed Cetus Guard 14612 | -5/Cetus | Allies destroyed Cetus Guard 14614 | -5/Cetus | Allies destroyed Cetus Guard 14693 | -5/Cetus | Started Cetus Manufacturing Module 14718 | -5/Cetus | Manufactured an Enhanced Grunt 14723 | -5/Cetus | Escorted A7 to Cetus Mainframe 14743 | -5/Cetus | Manufactured an Enhanced Grunt 14754 | -5/Cetus | Discovered new exit (range 15) 14768 | -5/Cetus | Manufactured an Enhanced Grunt 14769 | -5/Cetus | Attached CPS modules to A7. 14793 | -5/Cetus | Manufactured an Enhanced Grunt 14807 | -5/Cetus | Spotted Cetus Guard 14807 | -5/Cetus | Spotted Cetus Guard 14809 | -5/Cetus | Allies destroyed Cetus Guard 14810 | -5/Cetus | Spotted Cetus Guard 14811 | -5/Cetus | Spotted Cetus Guard 14815 | -5/Cetus | Allies destroyed Cetus Guard 14818 | -5/Cetus | Manufactured an Enhanced Grunt 14833 | -5/Cetus | Allies destroyed Cetus Guard 14834 | -5/Cetus | Allies destroyed Cetus Guard 14838 | -5/Cetus | Discovered new exit (range 15) 14847 | -5/Cetus | Met Revision 17 15064 | -5/Cetus | Build established: Commander-Gunner 15077 | -5/Cetus | System corruption reached 10% 15123 | -5/Cetus | Murdered A7 15126 | -5/Cetus | Extracted ID and sensor layout for unrecognized location from A7's data core 15144 | -5/Cetus | Found Med. Regenerative Plating 15315 | -5/Cetus | Security sweep announced 15341 | -5/Cetus | Entered Archives 15341 | -5/Archives | Accompanied by 16 allies 15371 | -5/Archives | Build established: Scavenger-Tank 15385 | -5/Archives | Discovered new exit (range 15) 15402 | -5/Archives | Discovered new exit (range 14) 15979 | -5/Archives | Entered Hub_04(d) 15979 | -5/Hub_04(d) | Accompanied by 16 allies 16072 | -5/Hub_04(d) | Discovered new exit (range 11) 16086 | -5/Hub_04(d) | Lost 5 allies 16123 | -5/Hub_04(d) | Discovered new exit (range 18) 16200 | -5/Hub_04(d) | Network Hub disabled 16214 | -5/Hub_04(d) | Spotted Lightning 16214 | -5/Hub_04(d) | Spotted Lightning 16218 | -5/Hub_04(d) | Allies destroyed Lightning 16221 | -5/Hub_04(d) | Attached CPS modules to Lightning. 16226 | -5/Hub_04(d) | Found Corrupted Exp. Thermal Shield 16243 | -5/Hub_04(d) | Destroyed Lightning 16249 | -5/Hub_04(d) | Found Exp. Phase Shifter 16259 | -5/Hub_04(d) | Found Exp. EM Shield 16269 | -5/Hub_04(d) | Lost 8 allies 16337 | -5/Hub_04(d) | Core integrity fell below 50% 16508 | -5/Hub_04(d) | Spotted Lightning 16517 | -5/Hub_04(d) | Spotted Lightning 16519 | -5/Hub_04(d) | Spotted Lightning 16524 | -5/Hub_04(d) | System corruption reached 30% 16529 | -5/Hub_04(d) | Entered Factory 16529 | -4/Factory | Evolved 2 slots: Power x1, Utility x1 16530 | -4/Factory | Identified exit to Research 16530 | -4/Factory | Identified exit to Upper Caves 16530 | -4/Factory | Identified exit to Armory 16970 | -4/Factory | Spotted B-86 Titan 16980 | -4/Factory | Destroyed 7 combat bots 17401 | -4/Factory | Destroyed 7 combat bots 17401 | -4/Factory | Lost 5 parts (2p1n1u1w) 17659 | -4/Factory | Cargo convoy interrupted 17660 | -4/Factory | Spotted Striker 17662 | -4/Factory | Spotted Executioner 17681 | -4/Factory | Released all parts (16) 17690 | -4/Factory | Core integrity fell below 50% 17700 | -4/Factory | Lost 4 parts (1n2u1w) 17703 | -4/Factory | Identified exit to Garrison 17703 | -4/Factory | Entered Garrison 17725 | -4/Garrison | Triggered checkpoint 17735 | -4/Garrison | Spotted B-86 Titan 17744 | -4/Garrison | Core integrity fell below 20% 17761 | -4/Garrison | Destroyed by S-27 Virus with Autogun Last Messages --------------- 17731_ Field strength at 22. 17732_ Field strength at 16. 17733_ Field strength at 10. 17734_ Field strength at 4. 17735_ Stasis field depleted. 17739_ System corrupted: Energy discharge (-25). 17740_ S-27 Virus destroyed. 17741_ Enh. Biometal Leg destroyed. 17747_ Triggered Stasis Trap. 17747_ A bubble of rippling energy engulfs the area. 17747_ Field strength at 94. 17748_ Field strength at 88. 17749_ Field strength at 79. 17750_ Field strength at 64. 17751_ Field strength at 54. 17752_ Field strength at 44. 17753_ Field strength at 29. 17754_ Field strength at 1. 17754_ Stasis field depleted. 17757_ System corrupted: Heat flow error (+172). Map ----- +----------------------------------------------------+ | ?? ???????????????????????????????? | | ?? ? ???????????????????????????????? | | ??# ?# ## #???????????????????????????????? | | ??# ## ## #???????????????????????????????? | | ??" "???????????????????????????????? | | ??" "???????????????????????????????? | | ??" "???????????????????????????????? | | ??" "???????????????????????????????? | | ??# #" ## #???????????????????????????????? | | ### #" *%=# ##########??????????????????????? | | = #??????????????????????? | | % #??????????????????????? | | ??# ####### #??????????????????????? | | ??## ## ## ##?????# #??????????????????????? | | ???# ## ## #??????# #??????????????????????? | | ???# ######## #??????# #??????????????????????? | | ???# #??????# #??????# #??????????????????????? | | ???# #??????# #??????# #??????????????????????? | | ???# #??????# #??????+s +??????????????????????? | | #### #??????# #??????#ss#??????????????????????? | | #??????# ########ss#??????????????????????? | | #??????# s ##### #????????????????? | | #######??????# #????????????????? | | ?????????????########### #######????????????????? | | ???????????????????????# #??????????????????????? | | ???????????????????????# @#??????????????????????? | | ##?????????????????????# ?????????????????????? | | #?????????????????????# # ???????????????????? | | #?????????????????????# ##A A ?????????????????? | | ???????????????????????# #?#####????????????????? | | ???????????????????????# ??????????????????????? | | ???????????????????????# ??????????????????????? | | ???????????????????????####??????????????????????? | | ?????????????????????????????????????????????????? | | ?????????????????????????????????????????????????? | | ?????????????????????????????????????????????????? | | ?????????????????????????????????????????????????? | | ?????????????????????????????????????????????????? | | ?????????????????????????????????????????????????? | | ?????????????????????????????????????????????????? | | ?????????????????????????????????????????????????? | | ?????????????????????????????????????????????????? | | ?????????????????????????????????????????????????? | | ?????????????????????????????????????????????????? | | ?????????????????????????????????????????????????? | | ?????????????????????????????????????????????????? | | ?????????????????????????????????????????????????? | | ?????????????????????????????????????????????????? | | ?????????????????????????????????????????????????? | | ?????????????????????????????????????????????????? | +----------------------------------------------------+ Best States ------------- Heat Dissipation 95 Energy Generation 63 Energy Capacity 825 Matter Stores 300 Matter Capacity 300 Sight Range 16 Robot Scan Range 16 Terrain Scan Range 16 Terrain Scan Density 10 Base Temperature (-) 100 Armor Coverage 900 Resistance: TH 30 Core Shielding 20 Weapon Cycling 20 Phase Shifting 20 Evasion (%) 60 Targeting Accuracy 8 Core Analysis 9 Recoil Reduction 11 Matter Filtering 50 Particle Charging 20 Kinecelleration 40 Offensive Hacking 20 Item Schematics ----------------- Huge Storage Unit | -9/Materials | Scanalyzed Lrg. Storage Unit | -9/Materials | Scanalyzed Core Shielding | -9/Materials | Scanalyzed Datajack | -9/Materials | Scanalyzed Core Analyzer | -8/Materials | Scanalyzed Hcp. Storage Unit | -8/Materials | Scanalyzed Plasma Cutter | -7/Factory | Hacked Biometal Leg | -5/Hub_04(d) | Hacked Robot Schematics ------------------ None Fabricated ------------ Nothing Repaired ---------- Nothing Studied --------- Aluminum Leg | -9/Materials | Hacked Hvy. Assault Rifle | -8/Materials | Hacked Gauss Cannon | -7/Factory | Hacked Alien Tech Used ----------------- None Achievements -------------- Insider Info My Business Is Booming Uncivil War Challenges ------------ None Game ------ Seed CoolingPitchforkShielding Manual? 0 Play Time 03:05:15 Cumulative 529.2 hours Start 2026.02.01 @ 13:10:58 End 2026.02.01 @ 18:29:30 Sessions 2 Manual Loads 0 Difficulty Rogue Special Mode None Game No. 209 Rogue 136 Adventurer 68 Explorer 5 Win Type - Total 40 Types 21/3/4/5/3/0/1/1/0/2 Lore% 85 Gallery% 80 Achievement% 67 Wizard Run 0 Options --------- Layout 0 ASCII 0 Keyboard 0 Movement Numpad Keybinds 0 Fullscreen 1 Font 24/Smallcaps Map View 76x50 Zoom Use 0% Tactical HUD 1 Map Filters NONE Filters NONE Steam 1 RUN: fcd968f5-cfbb-439b-b37f-b9b9b6b731c9